fUSD/lending_fUSD_20250407
["ID","MTS","AMOUNT","RATE_DAILY","PERIOD"]
[357309952,1744004267203,-500.0,0.00051232,120]
[357309953,1744004267270,-565.78,0.00051232,120]
[357309954,1744004267336,-500.0,0.00051232,120]
[357309955,1744004267401,-500.0,0.00051232,120]
[357309956,1744004267469,-695.39,0.00051232,120]
[357309957,1744004267533,-500.0,0.00051232,120]
[357309958,1744004267597,-516.92,0.00051232,120]
[357309959,1744004267660,-493.38313786,0.00051232,120]
[357309960,1744004267726,-2327.34,0.00051232,120]
[357309961,1744004267791,-500.0,0.00051232,120]
[357309962,1744004267856,-500.0,0.00051232,120]
[357309963,1744004267920,-500.0,0.00051232,120]
[357309964,1744004267984,-3568.12,0.00051232,120]
[357309965,1744004268050,-500.0,0.00051232,120]
[357309966,1744004268119,-500.0,0.00051232,120]
[357309967,1744004268195,-622.0468081,0.00051232,120]
[357309968,1744004268273,-500.0,0.00051232,120]
[357309969,1744004268340,-500.0,0.00051232,120]
[357309970,1744004268409,-500.0,0.00051232,120]
[357309971,1744004268477,-500.0,0.00051232,120]
[357309972,1744004268544,-207.13268968,0.00051232,120]
[357309973,1744004268615,-536.42,0.00051232,120]
[357309974,1744004268685,-500.0,0.00051232,120]
[357309975,1744004268755,-500.0,0.00051232,120]
[357309976,1744004268823,-500.0,0.00051232,120]
[357309977,1744004268891,-500.0,0.00051232,120]
[357309978,1744004268978,-269.04249273,0.00051232,120]
[357309979,1744004269050,-500.0,0.00051232,120]
[357309980,1744004269121,-500.0,0.00051232,120]
[357309981,1744004269195,-500.0,0.00051232,120]
[357309982,1744004269264,-500.0,0.00051232,120]
[357309983,1744004269333,-500.0,0.00051232,120]
[357309984,1744004269401,-500.0,0.00051232,120]
[357309985,1744004269470,-500.0,0.00051232,120]
[357309986,1744004269538,-500.0,0.00051232,120]
[357309987,1744004269603,-500.0,0.00051232,120]
[357309988,1744004269673,-1483.35,0.00051232,120]
[357309989,1744004269742,-500.0,0.00051232,120]
[357309990,1744004269810,-500.0,0.00051232,120]
[357309991,1744004269884,-902.71,0.00051232,120]
[357309992,1744004269954,-500.0,0.00051232,120]
[357309993,1744004270021,-500.0,0.00051232,120]
[357309994,1744004270093,-500.0,0.00051232,120]
[357309995,1744004270160,-4838.43,0.00051232,120]
[357309996,1744004270230,-521.52,0.00051232,120]
[357309997,1744004270294,-500.0,0.00051232,120]
[357309998,1744004270358,-500.0,0.00051232,120]
[357309999,1744004270421,-500.0,0.00051232,120]
[357310000,1744004270485,-500.0,0.00051232,120]
[357310001,1744004270547,-500.0,0.00051232,120]
[357310002,1744004270611,-500.0,0.00051232,120]
[357310003,1744004270677,-500.0,0.00051232,120]
[357310004,1744004270744,-1085.1,0.00051232,120]
[357310005,1744004270806,-500.0,0.00051232,120]
[357310006,1744004270870,-500.0,0.00051232,120]
[357310007,1744004270935,-757.6,0.00051232,120]
[357310008,1744004271003,-500.0,0.00051232,120]
[357310009,1744004271072,-500.0,0.00051232,120]
[357310010,1744004271140,-500.0,0.00051232,120]
[357310011,1744004271215,-626.03291721,0.00051232,120]
[357310012,1744004271291,-500.0,0.00051232,120]
[357310013,1744004271366,-528.41,0.00051232,120]
[357310014,1744004271440,-23119.87,0.00051232,120]
[357310015,1744004271514,-500.0,0.00051232,120]
[357310016,1744004271588,-500.0,0.00051232,120]
[357310017,1744004271658,-500.0,0.00051232,120]
[357310018,1744004271732,-576.76,0.00051232,120]
[357310019,1744004271802,-500.0,0.00051232,120]
[357310020,1744004272021,-500.0,0.00051232,120]
[357310021,1744004272088,-500.0,0.00051232,120]
[357310022,1744004272155,-500.0,0.00051232,120]
[357310023,1744004272223,-500.0,0.00051232,120]
[357310024,1744004272294,-500.0,0.00051232,120]
[357310025,1744004272366,-500.0,0.00051232,120]
[357310026,1744004272435,-598.2,0.00051232,120]
[357310027,1744004272506,-920.78,0.00051232,120]
[357310028,1744004272572,-500.0,0.00051232,120]
[357310029,1744004272634,-1760.18,0.00051232,120]
[357310030,1744004272698,-500.0,0.00051232,120]
[357310031,1744004272762,-500.0,0.00051232,120]
[357310032,1744004272825,-500.0,0.00051232,120]
[357310033,1744004272887,-593.72444774,0.0005138,30]
[357310034,1744004272947,-1744.39587025,0.000514,30]
[357310035,1744004273008,-3000.0,0.000515,120]
[357310036,1744004273073,-10000.0,0.000515,120]
[357310037,1744004273140,-1607.14,0.00051506,120]
[357310038,1744004273207,-500.0,0.00051506,120]
[357310039,1744004273274,-529.56,0.00051506,120]
[357310040,1744004273341,-500.0,0.00051506,120]
[357310041,1744004273409,-500.0,0.00051506,120]
[357310042,1744004273471,-632.78374386,0.00051506,120]
[357310043,1744004273530,-1873.68,0.00051506,120]
[357310044,1744004273591,-500.0,0.00051506,120]
[357310045,1744004273654,-500.0,0.00051506,120]
[357310046,1744004273719,-500.0,0.00051506,120]
[357310047,1744004273784,-500.0,0.00051506,120]
[357310048,1744004273847,-500.0,0.00051506,120]
[357310049,1744004273908,-500.0,0.00051506,120]
[357310050,1744004273969,-500.0,0.00051506,120]
[357310051,1744004274034,-500.0,0.00051506,120]
[357310052,1744004274102,-525.71985605,0.00051506,120]
[357310053,1744004274170,-500.0,0.00051506,120]
[357310054,1744004274237,-500.0,0.00051506,120]
[357310055,1744004274303,-500.0,0.00051506,120]
[357310056,1744004274369,-500.0,0.00051506,120]
[357310057,1744004274437,-500.0,0.00051506,120]
[357310058,1744004274505,-500.0,0.00051506,120]
[357310059,1744004274566,-500.0,0.00051506,120]
[357310060,1744004274631,-1225.53,0.00051506,120]
[357310061,1744004274697,-511.17292761,0.00051506,120]
[357310062,1744004274764,-635.4707163,0.00051506,120]
[357310063,1744004274827,-434.74712895,0.00051506,120]
[357310064,1744004274887,-617.97383816,0.00051506,120]
[357310065,1744004274949,-500.0,0.00051506,120]
[357310066,1744004275012,-500.0,0.00051506,120]
[357310067,1744004275076,-520.56379276,0.00051506,120]
[357310068,1744004275143,-500.0,0.00051506,120]
[357310069,1744004275212,-165.35523945,0.00051506,120]
[357310070,1744004275281,-500.0,0.00051506,120]
[357310071,1744004275355,-500.0,0.00051506,120]
[357310072,1744004275421,-500.0,0.00051506,120]
[357310073,1744004275486,-760.28,0.00051506,120]
[357310074,1744004275550,-500.0,0.00051506,120]
[357310075,1744004275612,-500.0,0.00051506,120]
[357310076,1744004275676,-500.0,0.00051506,120]
[357310077,1744004275743,-500.0,0.00051506,120]
[357310078,1744004275805,-500.0,0.00051506,120]
[357310079,1744004275866,-500.0,0.00051506,120]
[357310080,1744004275924,-835.94,0.00051506,120]
[357310081,1744004275983,-500.0,0.00051506,120]
[357310082,1744004276051,-500.0,0.00051506,120]
[357310083,1744004276113,-500.0,0.00051506,120]
[357310084,1744004276177,-626.13389691,0.00051506,120]
[357310085,1744004276242,-596.65,0.00051506,120]
[357310086,1744004276305,-800.51,0.00051506,120]
[357310087,1744004276369,-646.46,0.00051506,120]
[357310088,1744004276432,-500.0,0.00051506,120]
[357310089,1744004276496,-797.82,0.00051506,120]
[357310090,1744004276557,-698.98,0.00051506,120]
[357310091,1744004276618,-669.44,0.00051506,120]
[357310092,1744004276680,-2707.98,0.00051506,120]
[357310093,1744004276748,-500.0,0.00051506,120]
[357310094,1744004276809,-500.0,0.00051506,120]
[357310095,1744004276868,-500.0,0.00051506,120]
[357310096,1744004276927,-500.0,0.00051506,120]
[357310097,1744004276988,-500.0,0.00051506,120]
[357310098,1744004277047,-500.0,0.00051506,120]
[357310099,1744004277110,-524.26,0.00051506,120]
[357310100,1744004277174,-2353.85,0.00051506,120]
[357310101,1744004277238,-987.22,0.00051506,120]
[357310102,1744004277303,-500.0,0.00051506,120]
[357310103,1744004277369,-500.0,0.00051506,120]
[357310104,1744004277435,-500.0,0.00051506,120]
[357310105,1744004277505,-500.0,0.00051506,120]
[357310106,1744004277569,-500.0,0.00051506,120]
[357310107,1744004277632,-500.0,0.00051506,120]
[357310108,1744004277703,-500.0,0.00051506,120]
[357310109,1744004277767,-500.0,0.00051506,120]
[357310110,1744004277832,-500.0,0.00051506,120]
[357310111,1744004277896,-551.53,0.00051506,120]
[357310112,1744004277959,-678.92,0.00051506,120]
[357310113,1744004278026,-500.0,0.00051506,120]
[357310114,1744004278254,-761.56,0.00051506,120]
[357310115,1744004278321,-526.71,0.00051506,30]
[357310116,1744004278390,-500.0,0.00051506,120]
[357310117,1744004278457,-515.69,0.00051506,120]
[357310118,1744004278523,-238.59831131,0.00051506,120]
[357310119,1744004278588,-500.0,0.00051506,120]
[357310120,1744004278652,-500.0,0.00051506,120]
[357310121,1744004278720,-607.42,0.00051506,120]
[357310122,1744004278783,-1141.72,0.00051506,120]
[357310123,1744004278842,-500.0,0.00051506,120]
[357310124,1744004278903,-500.0,0.00051506,120]
[357310125,1744004278965,-836.39,0.00051506,120]
[357310126,1744004279026,-500.0,0.00051506,120]
[357310127,1744004279092,-500.0,0.00051506,120]
[357310128,1744004279158,-500.0,0.00051506,120]
[357310129,1744004279220,-500.0,0.00051506,120]
[357310130,1744004279283,-500.0,0.00051506,120]
[357310131,1744004279346,-1188.09,0.00051506,120]
[357310132,1744004279402,-500.0,0.00051506,120]
[357310133,1744004279463,-500.0,0.00051506,120]
[357310134,1744004279520,-500.0,0.00051506,120]
[357310135,1744004279577,-500.0,0.00051506,120]
[357310136,1744004279636,-869.5,0.00051506,120]
[357310137,1744004279695,-500.0,0.00051506,120]
[357310138,1744004279754,-500.0,0.00051506,120]
[357310139,1744004279812,-500.0,0.00051506,120]
[357310140,1744004279870,-500.0,0.00051506,120]
[357310141,1744004279927,-319.18,0.00051506,120]
[357310142,1744004279986,-891.76,0.00051506,120]
[357310143,1744004280045,-543.86,0.00051506,120]
[357310144,1744004280108,-1131.81,0.00051506,120]
[357310145,1744004280172,-642.12,0.00051506,120]
[357310146,1744004280239,-801.0,0.00051506,120]
[357310147,1744004280306,-500.0,0.00051506,120]
[357310148,1744004280376,-603.59,0.00051506,120]
[357310149,1744004280443,-500.0,0.00051506,120]
[357310150,1744004280511,-622.8466813,0.00051506,120]
[357310151,1744004280574,-1604.32,0.00051506,120]
[357310152,1744004280641,-500.0,0.00051506,120]
[357310153,1744004280705,-565.78,0.00051506,120]
[357310154,1744004280767,-346.15691938,0.00051506,120]
[357310155,1744004280823,-500.0,0.00051506,120]
[357310156,1744004280878,-695.39,0.00051506,120]
[357310157,1744004280933,-580.57312671,0.00051506,120]
[357310158,1744004280996,-516.92,0.00051506,120]
[357310159,1744004281062,-2327.34,0.00051506,120]
[357310160,1744004281129,-500.0,0.00051506,120]
[357310161,1744004281192,-500.0,0.00051506,120]
[357310162,1744004281267,-500.0,0.00051506,120]
[357310163,1744004281331,-3568.12,0.00051506,120]
[357310164,1744004281398,-500.0,0.00051506,120]
[357310165,1744004281465,-500.0,0.00051506,120]
[357310166,1744004281532,-500.0,0.00051506,120]
[357310167,1744004281597,-500.0,0.00051506,120]
[357310168,1744004281658,-500.0,0.00051506,120]
[357310169,1744004281721,-500.0,0.00051506,120]
[357310170,1744004281779,-536.42,0.00051506,120]
[357310171,1744004281837,-500.0,0.00051506,120]
[357310172,1744004281895,-500.0,0.00051506,120]
[357310173,1744004281954,-500.0,0.00051506,120]
[357310174,1744004282010,-500.0,0.00051506,120]
[357310175,1744004282071,-500.0,0.00051506,120]
[357310176,1744004282139,-500.0,0.00051506,120]
[357310177,1744004282206,-500.0,0.00051506,120]
[357310178,1744004282271,-500.0,0.00051506,120]
[357310179,1744004282335,-471.44925125,0.00051506,120]
[357310180,1744004282401,-500.0,0.00051506,120]
[357310181,1744004282465,-500.0,0.00051506,120]
[357310182,1744004282526,-500.0,0.00051506,120]
[357310183,1744004282589,-500.0,0.00051506,120]
[357310184,1744004282655,-1483.35,0.00051506,120]
[357310185,1744004282718,-500.0,0.00051506,120]
[357310186,1744004282780,-500.0,0.00051506,120]
[357310187,1744004282841,-902.71,0.00051506,120]
[357310188,1744004282900,-349.85445932,0.00051506,120]
[357310189,1744004282957,-500.0,0.00051506,120]
[357310190,1744004283015,-500.0,0.00051506,120]
[357310191,1744004283079,-4838.43,0.00051506,120]
[357310192,1744004283146,-521.52,0.00051506,120]
[357310193,1744004283215,-500.0,0.00051506,120]
[357310194,1744004283280,-500.0,0.00051506,120]
[357310195,1744004283345,-500.0,0.00051506,120]
[357310196,1744004283414,-500.0,0.00051506,120]
[357310197,1744004283478,-500.0,0.00051506,120]
[357310198,1744004283544,-500.0,0.00051506,120]
[357310199,1744004283608,-500.0,0.00051506,120]
[357310200,1744004283694,-1085.1,0.00051506,120]
[357310201,1744004283764,-500.0,0.00051506,120]
[357310202,1744004283829,-500.0,0.00051506,120]
[357310203,1744004283899,-757.6,0.00051506,120]
[357310204,1744004283965,-500.0,0.00051506,120]
[357310205,1744004284041,-500.0,0.00051506,120]
[357310206,1744004284115,-500.0,0.00051506,120]
[357310207,1744004284184,-500.0,0.00051506,120]
[357310208,1744004284255,-528.41,0.00051506,120]
[357310209,1744004284529,-23119.87,0.00051506,120]
[357310210,1744004284590,-500.0,0.00051506,120]
[357310211,1744004284655,-500.0,0.00051506,120]
[357310212,1744004284717,-500.0,0.00051506,120]
[357310213,1744004284780,-576.76,0.00051506,120]
[357310214,1744004284849,-500.0,0.00051506,120]
[357310215,1744004284916,-500.0,0.00051506,120]
[357310216,1744004284977,-500.0,0.00051506,120]
[357310217,1744004285037,-500.0,0.00051506,120]
[357310218,1744004285103,-500.0,0.00051506,120]
[357310219,1744004285170,-500.0,0.00051506,120]
[357310220,1744004285236,-500.0,0.00051506,120]
[357310221,1744004285302,-598.2,0.00051506,120]
[357310222,1744004285366,-920.78,0.00051506,120]
[357310223,1744004285430,-500.0,0.00051506,120]
[357310224,1744004285493,-1760.18,0.00051506,120]
[357310225,1744004285554,-268.0908206,0.00051506,120]
[357310226,1744004285618,-500.0,0.00051506,120]
[357310227,1744004285691,-500.0,0.00051506,120]
[357310228,1744004285758,-1607.14,0.0005178,120]
[357310229,1744004285824,-500.0,0.0005178,120]
[357310230,1744004285891,-529.56,0.0005178,120]
[357310231,1744004285955,-500.0,0.0005178,120]
[357310232,1744004286017,-509.90600923,0.0005178,120]
[357310233,1744004286085,-1873.68,0.0005178,120]
[357310234,1744004286148,-195.37266269,0.0005178,120]
[357310235,1744004286213,-500.0,0.0005178,120]
[357310236,1744004286276,-500.0,0.0005178,120]
[357310237,1744004286341,-500.0,0.0005178,120]
[357310238,1744004286405,-500.0,0.0005178,120]
[357310239,1744004286467,-500.0,0.0005178,120]
[357310240,1744004286527,-597.52737154,0.0005178,120]
[357310241,1744004286586,-500.0,0.0005178,120]
[357310242,1744004286642,-500.0,0.0005178,120]
[357310243,1744004286704,-500.0,0.0005178,120]
[357310244,1744004286762,-643.47686854,0.0005178,120]
[357310245,1744004286820,-500.0,0.0005178,120]
[357310246,1744004286879,-500.0,0.0005178,120]
[357310247,1744004286942,-500.0,0.0005178,120]
[357310248,1744004287003,-500.0,0.0005178,120]
[357310249,1744004287060,-1225.53,0.0005178,120]
[357310250,1744004287121,-182.84289271,0.0005178,120]
[357310251,1744004287181,-500.0,0.0005178,120]
[357310252,1744004287242,-500.0,0.0005178,120]
[357310253,1744004287307,-500.0,0.0005178,120]
[357310254,1744004287368,-500.0,0.0005178,120]
[357310255,1744004287429,-500.0,0.0005178,120]
[357310256,1744004287487,-760.28,0.0005178,120]
[357310257,1744004287549,-500.0,0.0005178,120]
[357310258,1744004287609,-500.0,0.0005178,120]
[357310259,1744004287670,-333.42444435,0.0005178,120]
[357310260,1744004287731,-500.0,0.0005178,120]
[357310261,1744004287791,-500.0,0.0005178,120]
[357310262,1744004287850,-500.0,0.0005178,120]
[357310263,1744004287911,-835.94,0.0005178,120]
[357310264,1744004287972,-500.0,0.0005178,120]
[357310265,1744004288032,-223.51911115,0.0005178,120]
[357310266,1744004288098,-500.0,0.0005178,120]
[357310267,1744004288166,-596.65,0.0005178,120]
[357310268,1744004288247,-800.51,0.0005178,120]
[357310269,1744004288321,-646.46,0.0005178,120]
[357310270,1744004288386,-500.0,0.0005178,120]
[357310271,1744004288448,-797.82,0.0005178,120]
[357310272,1744004288513,-698.98,0.0005178,120]
[357310273,1744004288574,-669.44,0.0005178,120]
[357310274,1744004288636,-2707.98,0.0005178,120]
[357310275,1744004288701,-500.0,0.0005178,120]
[357310276,1744004288768,-500.0,0.0005178,120]
[357310277,1744004288828,-500.0,0.0005178,120]
[357310278,1744004288886,-166.00497544,0.0005178,120]
[357310279,1744004288945,-500.0,0.0005178,120]
[357310280,1744004289003,-500.0,0.0005178,120]
[357310281,1744004289072,-524.26,0.0005178,120]
[357310282,1744004289133,-2353.85,0.0005178,120]
[357310283,1744004289195,-987.22,0.0005178,120]
[357310284,1744004289261,-500.0,0.0005178,120]
[357310285,1744004289324,-500.0,0.0005178,120]
[357310286,1744004289389,-500.0,0.0005178,120]
[357310287,1744004289463,-500.0,0.0005178,120]
[357310288,1744004289530,-500.0,0.0005178,120]
[357310289,1744004289594,-462.47190631,0.0005178,120]
[357310290,1744004289658,-500.0,0.0005178,120]
[357310291,1744004289721,-500.0,0.0005178,120]
[357310292,1744004289782,-500.0,0.0005178,120]
[357310293,1744004289841,-551.53,0.0005178,120]
[357310294,1744004289901,-678.92,0.0005178,120]
[357310295,1744004289960,-500.0,0.0005178,120]
[357310296,1744004290018,-761.56,0.0005178,120]
[357310297,1744004290085,-526.71,0.0005178,30]
[357310298,1744004290151,-500.0,0.0005178,120]
[357310299,1744004290218,-515.69,0.0005178,120]
[357310300,1744004290284,-329.23995452,0.0005178,120]
[357310301,1744004290350,-413.74567006,0.0005178,120]
[357310302,1744004290420,-607.42,0.0005178,120]
[357310303,1744004290699,-1141.72,0.0005178,120]
[357310304,1744004290771,-500.0,0.0005178,120]
[357310305,1744004290834,-500.0,0.0005178,120]
[357310306,1744004290898,-836.39,0.0005178,120]
[357310307,1744004290964,-500.0,0.0005178,120]
[357310308,1744004291027,-500.0,0.0005178,120]
[357310309,1744004291094,-500.0,0.0005178,120]
[357310310,1744004291160,-500.0,0.0005178,120]
[357310311,1744004291228,-406.00983628,0.0005178,120]
[357310312,1744004291297,-1188.09,0.0005178,120]
[357310313,1744004291365,-500.0,0.0005178,120]
[357310314,1744004291429,-500.0,0.0005178,120]
[357310315,1744004291489,-500.0,0.0005178,120]
[357310316,1744004291554,-500.0,0.0005178,120]
[357310317,1744004291615,-869.5,0.0005178,120]
[357310318,1744004291676,-500.0,0.0005178,120]
[357310319,1744004291744,-500.0,0.0005178,120]
[357310320,1744004291809,-500.0,0.0005178,120]
[357310321,1744004291871,-500.0,0.0005178,120]
[357310322,1744004291931,-319.18,0.0005178,120]
[357310323,1744004291992,-891.76,0.0005178,120]
[357310324,1744004292055,-543.86,0.0005178,120]
[357310325,1744004292117,-1131.81,0.0005178,120]
[357310326,1744004292180,-642.12,0.0005178,120]
[357310327,1744004292240,-801.0,0.0005178,120]
[357310328,1744004292300,-500.0,0.0005178,120]
[357310329,1744004292361,-603.59,0.0005178,120]
[357310330,1744004292422,-587.99923344,0.0005178,120]
[357310331,1744004292482,-1604.32,0.0005178,120]
[357310332,1744004292542,-500.0,0.0005178,120]
[357310333,1744004292599,-565.78,0.0005178,120]
[357310334,1744004292661,-500.0,0.0005178,120]
[357310335,1744004292725,-695.39,0.0005178,120]
[357310336,1744004292788,-516.92,0.0005178,120]
[357310337,1744004292849,-2327.34,0.0005178,120]
[357310338,1744004292907,-370.63695657,0.0005178,120]
[357310339,1744004292967,-500.0,0.0005178,120]
[357310340,1744004293025,-3568.12,0.0005178,120]
[357310341,1744004293090,-500.0,0.0005178,120]
[357310342,1744004293154,-500.0,0.0005178,120]
[357310343,1744004293219,-500.0,0.0005178,120]
[357310344,1744004293283,-500.0,0.0005178,120]
[357310345,1744004293347,-423.73162753,0.0005178,120]
[357310346,1744004293411,-500.0,0.0005178,120]
[357310347,1744004293473,-500.0,0.0005178,120]
[357310348,1744004293533,-536.42,0.0005178,120]
[357310349,1744004293593,-500.0,0.0005178,120]
[357310350,1744004293663,-500.0,0.0005178,120]
[357310351,1744004293728,-500.0,0.0005178,120]
[357310352,1744004293788,-500.0,0.0005178,120]
[357310353,1744004293847,-500.0,0.0005178,120]
[357310354,1744004293906,-500.0,0.0005178,120]
[357310355,1744004293961,-500.0,0.0005178,120]
[357310356,1744004294017,-500.0,0.0005178,120]
[357310357,1744004294080,-500.0,0.0005178,120]
[357310358,1744004294143,-500.0,0.0005178,120]
[357310359,1744004294207,-500.0,0.0005178,120]
[357310360,1744004294271,-500.0,0.0005178,120]
[357310361,1744004294328,-1483.35,0.0005178,120]
[357310362,1744004294386,-500.0,0.0005178,120]
[357310363,1744004294449,-342.92247946,0.0005178,120]
[357310364,1744004294509,-902.71,0.0005178,120]
[357310365,1744004294568,-500.0,0.0005178,120]
[357310366,1744004294625,-500.0,0.0005178,120]
[357310367,1744004294687,-4838.43,0.0005178,120]
[357310368,1744004294746,-521.52,0.0005178,120]
[357310369,1744004294804,-500.0,0.0005178,120]
[357310370,1744004294864,-500.0,0.0005178,120]
[357310371,1744004294927,-500.0,0.0005178,120]
[357310372,1744004294996,-500.0,0.0005178,120]
[357310373,1744004295063,-500.0,0.0005178,120]
[357310374,1744004295127,-500.0,0.0005178,120]
[357310375,1744004295190,-500.0,0.0005178,120]
[357310376,1744004295250,-1085.1,0.0005178,120]
[357310377,1744004295315,-500.0,0.0005178,120]
[357310378,1744004295376,-500.0,0.0005178,120]
[357310379,1744004295436,-757.6,0.0005178,120]
[357310380,1744004295496,-500.0,0.0005178,120]
[357310381,1744004295558,-500.0,0.0005178,120]
[357310382,1744004295623,-500.0,0.0005178,120]
[357310383,1744004295685,-500.0,0.0005178,120]
[357310384,1744004295744,-528.41,0.0005178,120]
[357310385,1744004295817,-23119.87,0.0005178,120]
[357310386,1744004295873,-330.44877832,0.0005178,120]
[357310387,1744004295930,-500.0,0.0005178,120]
[357310388,1744004295986,-500.0,0.0005178,120]
[357310389,1744004296044,-576.76,0.0005178,120]
[357310390,1744004296104,-500.0,0.0005178,120]
[357310391,1744004296163,-500.0,0.0005178,120]
[357310392,1744004296222,-500.0,0.0005178,120]
[357310393,1744004296281,-500.0,0.0005178,120]
[357310394,1744004296339,-500.0,0.0005178,120]
[357310395,1744004296397,-500.0,0.0005178,120]
[357310396,1744004296461,-500.0,0.0005178,120]
[357310397,1744004296722,-598.2,0.0005178,120]
[357310398,1744004296800,-920.78,0.0005178,120]
[357310399,1744004296865,-500.0,0.0005178,120]
[357310400,1744004296926,-1760.18,0.0005178,120]
[357310401,1744004296988,-500.0,0.0005178,120]
[357310402,1744004297055,-500.0,0.0005178,120]
[357310403,1744004297117,-207.10839,0.00051898,120]
[357310404,1744004297178,-1249.45778086,0.00051999,120]
[357310405,1744004297241,-1249.45778086,0.00051999,120]
[357310406,1744004297305,-1249.45778086,0.00051999,120]
[357310407,1744004297365,-1249.45778086,0.00051999,120]
[357310408,1744004297423,-500.0,0.00052,120]
[357310409,1744004297482,-1000.0,0.00052,120]
[357310410,1744004297542,-471924.51719471,0.00052,30]
[357310411,1744004297602,-250.0,0.00052,53]
[357310412,1744004297660,-350.0,0.00052,120]
[357310413,1744004297727,-707.0,0.00052,120]
[357310414,1744004297786,-1607.14,0.00052054,120]
[357310415,1744004297843,-500.0,0.00052054,120]
[357310416,1744004297902,-529.56,0.00052054,120]
[357310417,1744004297963,-500.0,0.00052054,120]
[357310418,1744004298024,-1873.68,0.00052054,120]
[357310419,1744004298090,-176.61993916,0.00052054,120]
[357310420,1744004298159,-500.0,0.00052054,120]
[357310421,1744004298232,-500.0,0.00052054,120]
[357310422,1744004298303,-543.30325644,0.00052054,120]
[357310423,1744004298371,-498.10499528,0.00052054,120]
[357310424,1744004298438,-500.0,0.00052054,120]
[357310425,1744004298500,-500.0,0.00052054,120]
[357310426,1744004298561,-500.0,0.00052054,120]
[357310427,1744004298618,-500.0,0.00052054,120]
[357310428,1744004298676,-500.0,0.00052054,120]
[357310429,1744004298741,-402.86350295,0.00052054,120]
[357310430,1744004298802,-500.0,0.00052054,120]
[357310431,1744004298863,-1225.53,0.00052054,120]
[357310432,1744004298925,-500.0,0.00052054,120]
[357310433,1744004298984,-500.0,0.00052054,120]
[357310434,1744004299041,-500.0,0.00052054,120]
[357310435,1744004299102,-500.0,0.00052054,120]
[357310436,1744004299170,-500.0,0.00052054,120]
[357310437,1744004299236,-760.28,0.00052054,120]
[357310438,1744004299303,-500.0,0.00052054,120]
[357310439,1744004299367,-500.0,0.00052054,120]
[357310440,1744004299436,-218.66396863,0.00052054,120]
[357310441,1744004299496,-500.0,0.00052054,120]
[357310442,1744004299555,-500.0,0.00052054,120]
[357310443,1744004299613,-835.94,0.00052054,120]
[357310444,1744004299671,-500.0,0.00052054,120]
[357310445,1744004299733,-500.0,0.00052054,120]
[357310446,1744004299791,-596.65,0.00052054,120]
[357310447,1744004299847,-800.51,0.00052054,120]
[357310448,1744004299903,-646.46,0.00052054,120]
[357310449,1744004299957,-500.0,0.00052054,120]
[357310450,1744004300013,-797.82,0.00052054,120]
[357310451,1744004300072,-698.98,0.00052054,120]